fUSD/lending_fUSD_20260202
["ID","MTS","AMOUNT","RATE_DAILY","PERIOD"]
[404311051,1770054639180,-444.02,0.00011532,2]
[404311053,1770054639190,-41721.21532374,0.00011541,2]
[404311055,1770054639200,-501.0,0.00011543,2]
[404311057,1770054639210,-26069.67358868,0.00011553,2]
[404311059,1770054639220,-444.02,0.00011561,2]
[404311061,1770054639233,-332.0,0.00011565,2]
[404311063,1770054639242,-329.99262105,0.00011578,2]
[404311065,1770054639251,-1864.0,0.00011578,2]
[404311067,1770054639260,-806.0,0.00011578,2]
[404311069,1770054639270,-500.0,0.00011578,2]
[404311071,1770054639280,-500.0,0.00011578,2]
[404311073,1770054639290,-500.0,0.00011578,2]
[404311075,1770054639299,-928.0,0.00011578,2]
[404311077,1770054639309,-546.0,0.00011578,2]
[404311079,1770054639319,-500.0,0.00011578,2]
[404311081,1770054639328,-150.0,0.0001159,2]
[404311083,1770054639337,-500.0,0.0001159,2]
[404311085,1770054639349,-500.0,0.0001159,2]
[404311087,1770054639360,-500.0,0.0001159,2]
[404311089,1770054639370,-150.0,0.0001159,2]
[404311092,1770054639380,-150.0,0.0001159,2]
[404311095,1770054639391,-500.0,0.0001159,2]
[404311097,1770054639400,-500.0,0.0001159,2]
[404311099,1770054639411,-150.0,0.0001159,2]
[404311101,1770054639421,-1215.0,0.0001159,2]
[404311103,1770054639433,-500.0,0.0001159,2]
[404311105,1770054639443,-150.0,0.0001159,2]
[404311107,1770054639454,-500.0,0.0001159,2]
[404311109,1770054639463,-500.0,0.0001159,2]
[404311111,1770054639474,-682.0,0.0001159,2]
[404311113,1770054639483,-150.0,0.0001159,2]
[404311115,1770054639493,-563.0,0.0001159,2]
[404311116,1770054639502,-500.0,0.0001159,2]
[404311118,1770054639511,-444.02,0.0001159,2]
[404311120,1770054639520,-24238.4039552,0.00011613,2]
[404311121,1770054639530,-41721.21532374,0.00011616,2]
[404311123,1770054639540,-444.02,0.0001162,2]
[404311125,1770054639549,-1864.0,0.00011633,2]
[404311126,1770054639559,-806.0,0.00011633,2]
[404311128,1770054639569,-500.0,0.00011633,2]
[404311130,1770054639578,-500.0,0.00011633,2]
[404311131,1770054639588,-500.0,0.00011633,2]
[404311133,1770054639597,-928.0,0.00011633,2]
[404311135,1770054639607,-546.0,0.00011633,2]
[404311136,1770054639616,-500.0,0.00011633,2]
[404311138,1770054639628,-150.0,0.00011645,2]
[404311140,1770054639637,-500.0,0.00011645,2]
[404311142,1770054639647,-500.0,0.00011645,2]
[404311143,1770054639657,-500.0,0.00011645,2]
[404311145,1770054639669,-166.03286464,0.00011645,2]
[404311147,1770054639679,-150.0,0.00011645,2]
[404311148,1770054639689,-500.0,0.00011645,2]
[404311150,1770054639698,-500.0,0.00011645,2]
[404311152,1770054639709,-150.0,0.00011645,2]
[404311154,1770054639719,-1215.0,0.00011645,2]
[404311156,1770054639728,-500.0,0.00011645,2]
[404311157,1770054639738,-150.0,0.00011645,2]
[404311159,1770054639747,-501.86439171,0.00011645,2]
[404311161,1770054639757,-500.0,0.00011645,2]
[404311162,1770054639766,-682.0,0.00011645,2]
[404311164,1770054639776,-150.0,0.00011645,2]
[404311166,1770054639785,-563.0,0.00011645,2]
[404311167,1770054639794,-500.0,0.00011645,2]
[404311169,1770054639804,-444.02,0.00011649,2]
[404311171,1770054639813,-26069.67358868,0.00011661,2]
[404311173,1770054639823,-324.92,0.00011665,2]
[404311174,1770054639833,-1864.0,0.00011688,2]
[404311176,1770054639842,-806.0,0.00011688,2]
[404311177,1770054639851,-500.0,0.00011688,2]
[404311179,1770054639861,-500.0,0.00011688,2]
[404311180,1770054639870,-506.60033805,0.00011688,2]
[404311181,1770054639880,-928.0,0.00011688,2]
[404311182,1770054639890,-546.0,0.00011688,2]
[404311183,1770054639899,-500.0,0.00011688,2]
[404311184,1770054639911,-41721.21532374,0.00011691,2]
[404311185,1770054639920,-175.66727683,0.000117,2]
[404311186,1770054639929,-500.0,0.000117,2]
[404311187,1770054639939,-500.0,0.000117,2]
[404311188,1770054639948,-500.0,0.000117,2]
[404311189,1770054639958,-150.0,0.000117,2]
[404311190,1770054639967,-500.0,0.000117,2]
[404311191,1770054639977,-206.01499169,0.000117,2]
[404311192,1770054639986,-150.27829964,0.000117,2]
[404311193,1770054639996,-1215.0,0.000117,2]
[404311194,1770054640006,-500.0,0.000117,2]
[404311196,1770054640024,-150.0,0.000117,2]
[404311197,1770054640035,-500.0,0.000117,2]
[404311198,1770054640044,-682.0,0.000117,2]
[404311200,1770054640053,-151.13726251,0.000117,2]
[404311202,1770054640063,-563.0,0.000117,2]
[404311204,1770054640073,-173.77378774,0.000117,2]
[404311206,1770054640084,-5230.06,0.00011729,2]
[404311207,1770054640093,-456.97,0.00011731,2]
[404311208,1770054640103,-1864.0,0.00011743,2]
[404311209,1770054640113,-806.0,0.00011743,2]
[404311210,1770054640122,-500.0,0.00011743,2]
[404311211,1770054640132,-500.0,0.00011743,2]
[404311213,1770054640142,-928.0,0.00011743,2]
[404311215,1770054640153,-546.0,0.00011743,2]
[404311216,1770054640165,-500.0,0.00011743,2]
[404311217,1770054640175,-500.0,0.00011754,2]
[404311218,1770054640184,-500.0,0.00011754,2]
[404311219,1770054640194,-500.0,0.00011754,2]
[404311220,1770054640205,-500.0,0.00011754,2]
[404311221,1770054640215,-1215.0,0.00011754,2]
[404311222,1770054640226,-500.0,0.00011754,2]
[404311223,1770054640236,-235.57065382,0.00011754,2]
[404311224,1770054640246,-500.0,0.00011754,2]
[404311225,1770054640257,-682.0,0.00011754,2]
[404311226,1770054640268,-563.0,0.00011754,2]
[404311227,1770054640278,-200.0,0.00011764,2]
[404311228,1770054640287,-200.0,0.00011764,2]
[404311229,1770054640297,-500.0,0.00011764,2]
[404311230,1770054640306,-26069.67358868,0.00011768,2]
[404311231,1770054640315,-3260.42699327,0.00011769,2]
[404311232,1770054640324,-8604.31842025,0.00011769,2]
[404311233,1770054640334,-15179.03759576,0.00011769,2]
[404311234,1770054640344,-22706.93244465,0.00011769,2]
[404311235,1770054640358,-500.0,0.00011791,2]
[404311236,1770054640368,-1864.0,0.00011798,2]
[404311237,1770054640378,-806.0,0.00011798,2]
[404311238,1770054640387,-500.0,0.00011798,2]
[404311239,1770054640400,-500.0,0.00011798,2]
[404311240,1770054640410,-928.0,0.00011798,2]
[404311241,1770054640420,-546.0,0.00011798,2]
[404311242,1770054640432,-500.0,0.00011798,2]
[404311243,1770054640441,-500.0,0.00011809,2]
[404311244,1770054640451,-262.59942725,0.00011809,2]
[404311245,1770054640460,-500.0,0.00011809,2]
[404311246,1770054640470,-256.45210639,0.00011809,2]
[404311247,1770054640479,-1215.0,0.00011809,2]
[404311248,1770054640489,-500.0,0.00011809,2]
[404311249,1770054640498,-500.0,0.00011809,2]
[404311250,1770054640507,-682.0,0.00011809,2]
[404311251,1770054640517,-563.0,0.00011809,2]
[404311252,1770054640526,-1000.0,0.00011835,2]
[404311253,1770054640535,-1864.0,0.00011852,2]
[404311254,1770054640545,-806.0,0.00011852,2]
[404311255,1770054640554,-500.0,0.00011852,2]
[404311256,1770054640564,-500.0,0.00011852,2]
[404311257,1770054640574,-928.0,0.00011852,2]
[404311258,1770054640584,-546.0,0.00011852,2]
[404311259,1770054640594,-500.0,0.00011852,2]
[404311260,1770054640604,-500.0,0.00011864,2]
[404311261,1770054640613,-500.0,0.00011864,2]
[404311262,1770054640623,-1215.0,0.00011864,2]
[404311263,1770054640632,-500.0,0.00011864,2]
[404311264,1770054640642,-627.9058201,0.00011864,2]
[404311265,1770054640651,-682.0,0.00011864,2]
[404311266,1770054640661,-563.0,0.00011864,2]
[404311267,1770054640670,-26069.67358868,0.00011876,2]
[404311268,1770054640680,-12528.0,0.000119,2]
[404311269,1770054640689,-1864.0,0.00011907,2]
[404311270,1770054640699,-806.0,0.00011907,2]
[404311271,1770054640708,-500.0,0.00011907,2]
[404311272,1770054640718,-500.0,0.00011907,2]
[404311273,1770054640729,-928.0,0.00011907,2]
[404311274,1770054640739,-546.0,0.00011907,2]
[404311275,1770054640749,-500.0,0.00011907,2]
[404311276,1770054641058,-500.0,0.00011919,2]
[404311277,1770054641072,-1215.0,0.00011919,2]
[404311278,1770054641082,-500.0,0.00011919,2]
[404311279,1770054641091,-682.0,0.00011919,2]
[404311280,1770054641100,-563.0,0.00011919,2]
[404311281,1770054641110,-1864.0,0.00011962,2]
[404311282,1770054641119,-806.0,0.00011962,2]
[404311283,1770054641129,-500.0,0.00011962,2]
[404311284,1770054641138,-500.0,0.00011962,2]
[404311285,1770054641148,-928.0,0.00011962,2]
[404311286,1770054641157,-546.0,0.00011962,2]
[404311287,1770054641168,-500.0,0.00011962,2]
[404311288,1770054641177,-1215.0,0.00011974,2]
[404311289,1770054641186,-500.0,0.00011974,2]
[404311290,1770054641196,-682.0,0.00011974,2]
[404311291,1770054641206,-563.0,0.00011974,2]
[404311292,1770054641216,-26069.67358868,0.00011983,2]
[404311293,1770054641225,-2922.58666298,0.00011999,2]
[404311294,1770054641234,-1864.0,0.00012017,2]
[404311295,1770054641244,-806.0,0.00012017,2]
[404311296,1770054641253,-500.0,0.00012017,2]
[404311297,1770054641263,-500.0,0.00012017,2]
[404311298,1770054641273,-928.0,0.00012017,2]
[404311299,1770054641282,-546.0,0.00012017,2]
[404311300,1770054641292,-500.0,0.00012017,2]
[404311301,1770054641301,-1215.0,0.00012028,2]
[404311302,1770054641311,-500.0,0.00012028,2]
[404311303,1770054641320,-682.0,0.00012028,2]
[404311304,1770054641329,-563.0,0.00012028,2]
[404311305,1770054641339,-500.0,0.00012065,2]
[404311306,1770054641349,-1864.0,0.00012072,2]
[404311307,1770054641362,-806.0,0.00012072,2]
[404311308,1770054641371,-500.0,0.00012072,2]
[404311309,1770054641381,-928.0,0.00012072,2]
[404311310,1770054641390,-546.0,0.00012072,2]
[404311311,1770054641401,-500.0,0.00012072,2]
[404311312,1770054641410,-1215.0,0.00012083,2]
[404311313,1770054641420,-500.0,0.00012083,2]
[404311314,1770054641430,-682.0,0.00012083,2]
[404311315,1770054641440,-563.0,0.00012083,2]
[404311316,1770054641450,-5531.0,0.000121,3]
[404311317,1770054641462,-1864.0,0.00012126,2]
[404311318,1770054641472,-806.0,0.00012126,2]
[404311319,1770054641482,-591.68158157,0.00012126,2]
[404311320,1770054641492,-928.0,0.00012126,2]
[404311321,1770054641502,-546.0,0.00012126,2]
[404311322,1770054641511,-500.0,0.00012126,2]
[404311323,1770054641520,-1215.0,0.00012138,2]
[404311324,1770054641531,-500.0,0.00012138,2]
[404311325,1770054641542,-682.0,0.00012138,2]
[404311326,1770054641552,-563.0,0.00012138,2]
[404311327,1770054641562,-255.0,0.0001216,2]
[404311328,1770054641572,-1864.0,0.00012181,2]
[404311329,1770054641582,-806.0,0.00012181,2]
[404311330,1770054641591,-928.0,0.00012181,2]
[404311331,1770054641600,-500.0,0.00012181,2]
[404311332,1770054641610,-546.0,0.00012181,2]
[404311333,1770054641620,-1215.0,0.00012193,2]
[404311334,1770054641629,-500.0,0.00012193,2]
[404311335,1770054641639,-682.0,0.00012193,2]
[404311336,1770054641652,-563.0,0.00012193,2]
[404311337,1770054641662,-420.0,0.00012213,2]
[404311338,1770054641671,-682.0,0.00012213,2]
[404311339,1770054641681,-1680.0,0.00012226,2]
[404311340,1770054641691,-539.56453595,0.00012227,2]
[404311341,1770054641701,-193.0,0.00012227,2]
[404311342,1770054641711,-300.0,0.00012227,2]
[404311343,1770054641723,-150.33828097,0.00012227,2]
[404311344,1770054641735,-250.0,0.00012227,2]
[404311345,1770054641744,-500.0,0.00012227,2]
[404311346,1770054641754,-195.0,0.00012227,2]
[404311347,1770054641764,-195.0,0.00012227,2]
[404311348,1770054641773,-312.63377507,0.00012227,2]
[404311349,1770054641783,-500.0,0.00012227,2]
[404311350,1770054641792,-1864.0,0.00012236,2]
[404311351,1770054641801,-806.0,0.00012236,2]
[404311352,1770054641810,-928.0,0.00012236,2]
[404311353,1770054641820,-500.0,0.00012236,2]
[404311354,1770054641829,-546.0,0.00012236,2]
[404311355,1770054641839,-1215.0,0.00012248,2]
[404311356,1770054641849,-500.0,0.00012248,2]
[404311357,1770054641859,-682.0,0.00012248,2]
[404311358,1770054641868,-563.0,0.00012248,2]
[404311359,1770054641877,-324.92,0.00012249,2]
[404311360,1770054641887,-30723.2838,0.00012269,2]
[404311361,1770054641897,-806.0,0.00012291,2]
[404311362,1770054641907,-1864.0,0.00012291,2]
[404311363,1770054641917,-928.0,0.00012291,2]
[404311364,1770054641927,-311.43207959,0.00012291,2]
[404311365,1770054641936,-546.0,0.00012291,2]
[404311366,1770054641945,-1215.0,0.00012302,2]
[404311367,1770054641955,-500.0,0.00012302,2]
[404311368,1770054641964,-682.0,0.00012302,2]
[404311369,1770054641974,-563.0,0.00012302,2]
[404311370,1770054641983,-200.0,0.00012312,2]
[404311371,1770054641993,-200.0,0.00012312,2]
[404311372,1770054642002,-500.0,0.00012312,2]
[404311373,1770054642012,-500.0,0.00012339,2]
[404311374,1770054642022,-806.0,0.00012346,2]
[404311375,1770054642031,-1864.0,0.00012346,2]
[404311376,1770054642041,-928.0,0.00012346,2]
[404311377,1770054642050,-546.0,0.00012346,2]
[404311378,1770054642060,-1215.0,0.00012357,2]
[404311379,1770054642069,-500.0,0.00012357,2]
[404311380,1770054642079,-682.0,0.00012357,2]
[404311381,1770054642089,-563.0,0.00012357,2]
[404311382,1770054642099,-806.0,0.000124,2]
[404311383,1770054642108,-1864.0,0.000124,2]
[404311384,1770054642117,-928.0,0.000124,2]
[404311385,1770054642127,-546.0,0.000124,2]
[404311386,1770054642137,-1215.0,0.00012412,2]
[404311387,1770054642146,-500.0,0.00012412,2]
[404311388,1770054642155,-563.0,0.00012412,2]
[404311389,1770054642165,-682.0,0.00012412,2]
[404311390,1770054642175,-3504.2194888,0.00012416,2]
[404311391,1770054642184,-806.0,0.00012455,2]
[404311393,1770054642193,-1864.0,0.00012455,2]
[404311394,1770054642203,-928.0,0.00012455,2]
[404311395,1770054642212,-546.0,0.00012455,2]
[404311397,1770054642222,-1215.0,0.00012467,2]
[404311398,1770054642231,-500.0,0.00012467,2]
[404311399,1770054642240,-563.0,0.00012467,2]
[404311400,1770054642250,-682.0,0.00012467,2]
[404311401,1770054642260,-806.0,0.0001251,2]
[404311402,1770054642269,-1864.0,0.0001251,2]
[404311403,1770054642278,-928.0,0.0001251,2]
[404311404,1770054642288,-546.0,0.0001251,2]
[404311405,1770054642297,-1215.0,0.00012522,2]
[404311406,1770054642306,-500.0,0.00012522,2]
[404311407,1770054642316,-563.0,0.00012522,2]
[404311408,1770054642326,-682.0,0.00012522,2]
[404311409,1770054642335,-806.0,0.00012565,2]
[404311410,1770054642346,-1864.0,0.00012565,2]
[404311411,1770054642360,-928.0,0.00012565,2]
[404311412,1770054642370,-546.0,0.00012565,2]
[404311413,1770054642381,-1215.0,0.00012576,2]
[404311414,1770054642393,-546.41767712,0.00012576,2]
[404311415,1770054642402,-563.0,0.00012576,2]
[404311416,1770054642414,-682.0,0.00012576,2]
[404311417,1770054642425,-500.0,0.00012613,2]
[404311418,1770054642436,-806.0,0.00012619,2]
[404311419,1770054642445,-1864.0,0.00012619,2]
[404311420,1770054642454,-928.0,0.00012619,2]
[404311421,1770054642464,-546.0,0.00012619,2]
[404311422,1770054642475,-1215.0,0.00012631,2]
[404311423,1770054642485,-563.0,0.00012631,2]
[404311424,1770054642495,-682.0,0.00012631,2]
[404311425,1770054642506,-821.05876183,0.00012674,2]
[404311426,1770054642515,-1884.0,0.00012674,2]
[404311427,1770054642524,-950.71741318,0.00012674,2]
[404311428,1770054642533,-554.58574062,0.00012674,2]
[404311429,1770054642543,-1215.0,0.00012686,2]
[404311430,1770054642553,-682.0,0.00012686,2]
[404311431,1770054642565,-563.0,0.00012686,2]
[404311432,1770054642575,-200.0,0.000127,2]
[404311433,1770054642588,-1215.0,0.00012741,2]
[404311434,1770054642599,-682.0,0.00012741,2]
[404311435,1770054642608,-563.0,0.00012741,2]
[404311436,1770054642618,-1215.0,0.00012795,2]
[404311437,1770054642628,-682.0,0.00012795,2]
[404311438,1770054642639,-563.0,0.00012795,2]
[404311439,1770054642650,-24238.4039552,0.00012798,2]
[404311440,1770054642660,-592.49052589,0.00012812,2]
[404311441,1770054642670,-200.0,0.00012827,2]
[404311442,1770054642679,-324.92,0.00012832,2]
[404311443,1770054642690,-1219.22922749,0.0001285,2]
[404311444,1770054642699,-694.19168007,0.0001285,2]
[404311445,1770054642709,-573.19208607,0.0001285,2]
[404311446,1770054642719,-781.8970557,0.00012859,2]
[404311447,1770054642729,-200.0,0.0001286,2]
[404311448,1770054642738,-208.65826531,0.0001286,2]
[404311449,1770054642747,-500.0,0.0001286,2]
[404311450,1770054642758,-500.0,0.00012887,2]
[404311451,1770054642767,-200.0,0.00012955,2]
[404311452,1770054642778,-2922.58666298,0.00012983,2]
[404311453,1770054642789,-98441.87394799,0.00013,2]
[404311454,1770054642800,-200.0,0.00013085,2]
[404311455,1770054642811,-1000.0,0.0001315,2]
[404311456,1770054642821,-500.0,0.00013161,2]
[404311457,1770054642832,-179.84,0.00013178,2]
[404311458,1770054642842,-200.0,0.000132,2]
[404311459,1770054642852,-200.0,0.00013216,2]
[404311460,1770054642863,-433.0,0.00013305,2]
[404311461,1770054642872,-200.0,0.00013332,2]
[404311462,1770054642881,-500.0,0.00013342,2]
[404311463,1770054642891,-1000.0,0.00013399,2]
[404311464,1770054642900,-200.0,0.00013408,2]
[404311465,1770054642910,-500.0,0.00013408,2]
[404311466,1770054642920,-324.92,0.00013415,2]
[404311467,1770054642930,-587.0,0.00013419,2]
[404311468,1770054642939,-234.50786848,0.00013424,2]
[404311470,1770054642949,-500.0,0.00013424,2]
[404311472,1770054642959,-500.0,0.00013424,2]
[404311474,1770054642971,-150.10178686,0.00013424,2]
[404311476,1770054642981,-150.0,0.00013424,2]
[404311478,1770054642990,-150.28399281,0.00013424,2]
[404311481,1770054642999,-150.86853195,0.00013424,2]
[404311484,1770054643009,-500.0,0.00013424,2]
[404311487,1770054643018,-150.0,0.00013424,2]
[404311490,1770054643028,-150.0,0.00013424,2]
[404311491,1770054643038,-376.4,0.00013424,2]
[404311493,1770054643047,-500.0,0.00013435,2]
[404311494,1770054643056,-2351.0,0.00013449,2]
[404311495,1770054643066,-200.0,0.00013465,2]
[404311496,1770054643075,-599.274,0.00013479,2]
[404311497,1770054643084,-500.0,0.00013479,2]
[404311498,1770054643094,-150.0,0.00013479,2]
[404311499,1770054643103,-500.0,0.00013479,2]
[404311500,1770054643112,-150.0,0.00013479,2]
[404311501,1770054643121,-155.94467862,0.00013479,2]
[404311502,1770054643130,-500.0,0.00013534,2]
[404311503,1770054643139,-150.0,0.00013534,2]
[404311504,1770054643149,-500.0,0.00013534,2]
[404311505,1770054643157,-150.0,0.00013534,2]
[404311506,1770054643168,-433.41072536,0.00013588,2]
[404311507,1770054643177,-212.45183981,0.00013588,2]
[404311508,1770054643187,-150.0,0.00013588,2]
[404311509,1770054643196,-500.0,0.00013588,2]
[404311510,1770054643206,-456.97,0.00013593,2]
[404311511,1770054643215,-200.0,0.000136,2]
[404311512,1770054643225,-186.58,0.00013606,2]
[404311513,1770054643234,-172.3355615,0.00013642,2]
[404311514,1770054643243,-291.47561802,0.00013643,2]
[404311515,1770054643253,-500.0,0.00013643,2]
[404311516,1770054643262,-1113.82268359,0.00013686,2]
[404311517,1770054643271,-614.09208231,0.00013686,2]
[404311518,1770054643280,-370.20661223,0.00013698,2]
[404311519,1770054643290,-500.0,0.00013698,2]
[404311520,1770054643299,-500.0,0.00013698,2]
[404311521,1770054643308,-500.0,0.00013698,2]
[404311522,1770054643317,-500.0,0.00013698,2]
[404311523,1770054643326,-500.0,0.00013698,2]
[404311524,1770054643335,-500.0,0.00013698,2]
[404311525,1770054643344,-500.0,0.00013698,2]
[404311526,1770054643356,-500.0,0.00013698,2]
[404311527,1770054643366,-500.0,0.00013698,2]
[404311528,1770054643375,-500.0,0.00013698,2]
[404311529,1770054643384,-500.0,0.00013698,2]
[404311530,1770054643394,-500.0,0.00013698,2]
[404311531,1770054643403,-500.0,0.00013698,2]
[404311532,1770054643412,-500.0,0.00013698,2]
[404311533,1770054643421,-1138.6,0.00013698,2]
[404311534,1770054643501,-1138.6,0.00013698,2]
[404311535,1770054643514,-1138.6,0.00013698,2]
[404311536,1770054643523,-1138.6,0.00013698,2]
[404311537,1770054643532,-1138.6,0.00013698,2]
[404311538,1770054643542,-1138.6,0.00013698,2]
[404311539,1770054643552,-1138.6,0.00013698,2]
[404311540,1770054643563,-1138.6,0.00013698,2]
[404311541,1770054643573,-1138.6,0.00013698,2]
[404311542,1770054643583,-1138.6,0.00013698,2]
[404311543,1770054643593,-1138.6,0.00013698,2]
[404311544,1770054643604,-1138.6,0.00013698,2]
[404311545,1770054643615,-1138.6,0.00013698,2]
[404311546,1770054643625,-1138.6,0.00013698,2]
[404311547,1770054643635,-512.64,0.00013698,2]
[404311548,1770054643645,-512.64,0.00013698,2]
[404311549,1770054643656,-512.64,0.00013698,2]
[404311550,1770054643668,-512.64,0.00013698,2]
[404311551,1770054643677,-512.64,0.00013698,2]
[404311552,1770054643686,-512.64,0.00013698,2]
[404311553,1770054643696,-512.64,0.00013698,2]
[404311554,1770054643705,-512.64,0.00013698,2]
[404311555,1770054643714,-512.64,0.00013698,2]
[404311556,1770054643724,-512.64,0.00013698,2]
[404311557,1770054643735,-512.64,0.00013698,2]
[404311558,1770054643746,-512.64,0.00013698,2]
[404311559,1770054643755,-512.64,0.00013698,2]
[404311560,1770054643764,-512.64,0.00013698,2]
[404311561,1770054643773,-646.39442601,0.00013698,2]
[404311562,1770054643782,-596.97,0.00013698,2]
[404311563,1770054643791,-596.97,0.00013698,2]
[404311564,1770054643800,-596.97,0.00013698,2]
[404311565,1770054643810,-596.97,0.00013698,2]
[404311566,1770054643819,-596.97,0.00013698,2]
[404311567,1770054643829,-596.97,0.00013698,2]
[404311568,1770054643838,-596.97,0.00013698,2]
[404311569,1770054643848,-596.97,0.00013698,2]
[404311570,1770054643857,-596.97,0.00013698,2]
[404311571,1770054643866,-596.97,0.00013698,2]
[404311572,1770054643875,-596.97,0.00013698,2]
[404311573,1770054643884,-596.97,0.00013698,2]
[404311574,1770054643894,-596.97,0.00013698,2]
[404311575,1770054643903,-596.97,0.00013698,2]
[404311576,1770054643912,-500.0,0.00013698,2]
[404311577,1770054643921,-500.0,0.00013698,2]
[404311578,1770054643930,-500.0,0.00013698,2]
[404311579,1770054643940,-500.0,0.00013698,2]
[404311580,1770054643949,-500.0,0.00013698,2]
[404311581,1770054643958,-500.0,0.00013698,2]
[404311582,1770054643968,-334.5135457,0.00013698,2]
[404311583,1770054643978,-500.0,0.00013698,2]
[404311584,1770054643987,-500.0,0.00013698,2]
[404311585,1770054643996,-500.0,0.00013698,2]
[404311586,1770054644005,-500.0,0.00013698,2]
[404311587,1770054644015,-500.0,0.00013698,2]
[404311588,1770054644026,-500.0,0.00013698,2]
[404311589,1770054644036,-500.0,0.00013698,2]
[404311590,1770054644046,-500.0,0.00013698,2]
[404311591,1770054644056,-591.08774682,0.00013698,2]
[404311592,1770054644065,-500.0,0.00013698,2]
[404311593,1770054644075,-500.0,0.00013698,2]
[404311594,1770054644084,-500.0,0.00013698,2]
[404311595,1770054644094,-500.0,0.00013698,2]
[404311596,1770054644103,-500.0,0.00013698,2]
[404311597,1770054644112,-453.09371713,0.00013698,2]
[404311598,1770054644122,-500.0,0.00013698,2]
[404311599,1770054644131,-500.0,0.00013698,2]
[404311600,1770054644140,-500.0,0.00013698,2]
[404311601,1770054644148,-500.0,0.00013698,2]
[404311602,1770054644157,-500.0,0.00013698,2]
[404311603,1770054644170,-500.0,0.00013698,2]
[404311604,1770054644180,-500.0,0.00013698,2]
[404311605,1770054644188,-500.0,0.00013698,2]
[404311606,1770054644198,-500.0,0.00013698,2]
[404311607,1770054644207,-500.0,0.00013698,2]
[404311608,1770054644216,-500.0,0.00013698,2]
[404311609,1770054644225,-500.0,0.00013698,2]
[404311610,1770054644234,-500.0,0.00013698,2]
[404311611,1770054644243,-366.58671911,0.00013698,2]
[404311612,1770054644252,-741.8,0.00013698,2]
[404311613,1770054644261,-741.8,0.00013698,2]
[404311614,1770054644270,-741.8,0.00013698,2]
[404311615,1770054644280,-741.8,0.00013698,2]
[404311616,1770054644289,-741.8,0.00013698,2]
[404311617,1770054644298,-741.8,0.00013698,2]
[404311618,1770054644306,-741.8,0.00013698,2]
[404311619,1770054644315,-741.8,0.00013698,2]
[404311620,1770054644324,-741.8,0.00013698,2]
[404311621,1770054644333,-741.8,0.00013698,2]
[404311622,1770054644341,-741.8,0.00013698,2]
[404311623,1770054644353,-741.8,0.00013698,2]
[404311624,1770054644362,-741.8,0.00013698,2]
[404311625,1770054644371,-741.8,0.00013698,2]
[404311626,1770054644380,-500.0,0.00013698,2]
[404311627,1770054644390,-500.0,0.00013698,2]
[404311628,1770054644400,-500.0,0.00013698,2]
[404311629,1770054644410,-500.0,0.00013698,2]
[404311630,1770054644419,-500.0,0.00013698,2]
[404311631,1770054644430,-500.0,0.00013698,2]
[404311632,1770054644439,-500.0,0.00013698,2]